[Event "GER-ch Youth-U12 2024"]
[Site "Willingen"]
[Date "2024.05.21"]
[Round "4"]
[White "Tarasenko, Nazar"]
[Black "Peglau, Paul David"]
[Result "1-0"]
[ECO "D41"]
[WhiteElo "2061"]
[BlackElo "1806"]
[Annotator "RC"]
[PlyCount "77"]
[EventDate "2022.06.05"]
[EventType "swiss"]
[EventRounds "9"]
[EventCountry "GER"]
[SourceTitle "playchess.com"]
[Source "ChessBase"]
[SourceQuality "1"]
[TimeControl "40/4500+30:900+30"]

1. d4 {[%emt 0:00:00]} d5 {[%emt 0:00:00]} 2. c4 {[%emt 0:00:00]} e6 {[%emt 0:00:00]} 3. Nc3 {[%emt 0:00:00]} Nf6 {[%emt 0:00:00]} 4. cxd5 {[%emt 0:00:00]} Nxd5 {[%emt 0:00:00]} 5. e4 {[%emt 0:00:00]} Nxc3 {[%emt 0:00:00]} 6. bxc3 {[%emt 0:00:00]} c5 {[%emt 0:00:00]} 7. Nf3 {[%emt 0:00:00]} cxd4 {[%emt 0:00:00]} 8. cxd4 {[%emt 0:00:00]} Bb4+ {[%emt 0:00:00]} 9. Bd2 {[%emt 0:00:00]} Bxd2+ {[%emt 0:00:00]} 10. Qxd2 {[%emt 0:00:00]} O-O {[%emt 0:00:00]} 11. Be2 {[%emt 0:00:00]} b6 {[%emt 0:00:00]} 12. O-O {[%emt 0:00:11]} Bb7 {[%emt 0:00:00]} 13. Qe3 {[%emt 0:00:51]} Nd7 {[%emt 0:00:00]} 14. Rad1 {[%emt 0:01:31]} Rc8 {[%emt 0:00:00]} 15. Bd3 {[%emt 0:00:31]} Re8 {[%emt 0:05:33]} 16. Rfe1 {[%emt 0:03:25]} Nf8 {[%emt 0:03:57]} 17. h4 {[%emt 0:03:35]} h5 {[%emt 0:20:49]} 18. Ng5 {[%emt 0:09:34]} Re7 {[%emt 0:18:09]} 19. Be2 {[%emt 0:06:06]} g6 {[%emt 0:01:30]} 20. e5 {[%emt 0:00:47]} Rc2 {[%emt 0:04:42]} 21. Qf4 {[%emt 0:02:40]} Nh7 {[%emt 0:09:39]} 22. Bd3 {[%emt 0:08:16]} Rb2 {[%emt 0:04:30]} 23. Nh3 {[%emt 0:06:25]} Rd7 {[%emt 0:03:26]} 24. Qh6 {[%emt 0:03:29]} Qxh4 {[%emt 0:05:26]} 25. d5 {[%emt 0:01:04]} Bxd5 {[%emt 0:04:13]} 26. Rc1 {[%emt 0:00:32]} Bb7 {[%emt 0:01:15]} 27. Be4 {[%emt 0:00:15]} Bxe4 {[%emt 0:01:09]} 28. Rxe4 {[%emt 0:00:51]} Qe7 {[%emt 0:02:18]} 29. Rec4 {[%emt 0:00:37]} Rbd2 {[%emt 0:02:30]} 30. Rc8+ {[%emt 0:00:13]} Nf8 {[%emt 0:00:09]} 31. Ng5 {[%emt 0:00:35]} Rd8 {[%emt 0:01:07]} 32. R1c7 {[%emt 0:07:30]} R2d7 {[%emt 0:00:25]} 33. Rxd7 {[%emt 0:02:56]} Qxd7 {[%emt 0:00:30]} 34. Ne4 {[%emt 0:01:50]} Qd1+ {[%emt 0:00:40]} 35. Kh2 {[%emt 0:00:04]} Nh7 {[%emt 0:00:27]} 36. Nf6+ {[%emt 0:00:07]} Nxf6 {[%emt 0:00:31]} 37. exf6 {[%emt 0:00:05]} Qd6+ {[%emt 0:00:23]} 38. g3 {[%emt 0:00:06]} Qf8 {[%emt 0:00:28]} 39. Rxd8 {[%emt 0:00:05]} 1-0

[Event "GER-ch Youth-U12 2024"]
[Site "Willingen"]
[Date "2024.05.21"]
[Round "4"]
[White "Zhang, Yibo"]
[Black "Vartanian, Roman"]
[Result "1/2-1/2"]
[ECO "B92"]
[WhiteElo "1988"]
[BlackElo "1797"]
[Annotator "NA RC"]
[PlyCount "86"]
[EventDate "2022.06.05"]
[EventType "swiss"]
[EventRounds "9"]
[EventCountry "GER"]
[SourceTitle "playchess.com"]
[Source "ChessBase"]
[SourceQuality "1"]
[TimeControl "40/4500+30:900+30"]

1. e4 {[%emt 0:00:00]} c5 {[%emt 0:00:00]} 2. Nf3 {[%emt 0:00:00]} d6 {[%emt 0:00:00]} 3. d4 {[%emt 0:00:00]} cxd4 {[%emt 0:00:00]} 4. Nxd4 {[%emt 0:00:00]} Nf6 {[%emt 0:00:00]} 5. Nc3 {[%emt 0:00:00]} a6 {[%emt 0:00:00]} 6. Be2 {[%emt 0:00:00]} e5 {[%emt 0:00:00]} 7. Nb3 {[%emt 0:00:00]} Be6 {[%emt 0:00:00]} 8. O-O {[%emt 0:00:00]} Be7 {[%emt 0:00:00]} 9. f4 {[%emt 0:00:00]} b5 {[%emt 0:00:00] B92: Sicilian Najdorf: 6 Be2.} 10. f5 {[%emt 0:15:20]} Bc8 {[%emt 0:00:00]} 11. Bf3 {[%emt 0:04:49]} Bb7 {[%emt 0:00:00]} 12. Qe1 {[%emt 0:04:15]} Nbd7 {[%emt 0:15:58]} 13. Be3 {[%emt 0:09:03]} Qc7 {[%emt 0:01:07]} 14. Rc1 {[%emt 0:05:50]} Nc5 {[%emt 0:06:29]} 15. Qg3 {[%emt 0:07:49]} Ncxe4 {[%emt 0:18:43]} 16. Bxe4 {[%emt 0:01:03]} Bxe4 {[%emt 0:04:58]} 17. Nxe4 {[%emt 0:01:19]} Nxe4 {[%emt 0:00:10]} 18. Qxg7 {[%emt 0:01:17]} Bf6 {[%emt 0:01:31]} 19. Qg4 {[%emt 0:00:30]} d5 {[%emt 0:00:32]} 20. Rfd1 {[%emt 0:04:41]} Rd8 {[%emt 0:01:15]} 21. Nd2 {[%emt 0:01:54]} Nxd2 {[%emt 0:02:41]} 22. Bxd2 {[%emt 0:02:11]} Qc4 {[%emt 0:00:48]} 23. Qf3 {[%emt 0:00:53]} Rg8 {[%emt 0:01:24]} 24. b3 {[%emt 0:04:41]} Qg4 {[%emt 0:01:43]} 25. Qxg4 {[%emt 0:02:05]} Rxg4 {[%emt 0:00:06]} 26. h3 {[%emt 0:00:38]} Rg3 {[%emt 0:02:14]} 27. Kh2 {[%emt 0:02:58]} Rg8 {[%emt 0:00:56]} 28. Ba5 $15 {[%emt 0:01:55]} (28. c4 $11) 28... Rd7 {[%emt 0:04:26]} 29. c4 {[%emt 0:00:21]} Bg5 {[%emt 0:02:18]} 30. Rc2 {[%emt 0:00:34]} Bf4+ {[%emt 0:00:46]} 31. Kh1 {[%emt 0:00:35]} dxc4 {[%emt 0:02:02]} 32. Rxd7 {[%emt 0:00:18]} Kxd7 {[%emt 0:00:05]} 33. bxc4 {[%emt 0:00:04]} Rc8 {[%emt 0:01:50]} 34. c5 {[%emt 0:00:27]} Be3 {[%emt 0:00:30]} 35. Bb4 {[%emt 0:01:12]} Bd4 {[%emt 0:02:28]} 36. g4 {[%emt 0:01:04]} Kc6 {[%emt 0:00:09]} 37. h4 {[%emt 0:02:49]} Kd5 {[%emt 0:00:10]} 38. Kg2 {[%emt 0:01:43]} Rc7 {[%emt 0:03:14]} 39. g5 {[%emt 0:01:17]} Ke4 {[%emt 0:06:03]} 40. c6 {[%emt 0:00:47]} Kd5 {[%emt 0:02:19]} 41. Kf3 {[%emt 0:16:40]} e4+ {[%emt 0:23:17]} 42. Kf4 {[%emt 0:06:51]} Be5+ {[%emt 0:00:00]} 43. Ke3 {[%emt 0:00:00]} Bd4+ {[%emt 0:00:00]} 1/2-1/2

[Event "GER-ch Youth-U12 2024"]
[Site "Willingen"]
[Date "2024.05.21"]
[Round "4"]
[White "Bundan, Edward"]
[Black "Meijers, Janis"]
[Result "1-0"]
[ECO "B11"]
[WhiteElo "1897"]
[BlackElo "1787"]
[Annotator "NA RC"]
[PlyCount "149"]
[EventDate "2022.06.05"]
[EventType "swiss"]
[EventRounds "9"]
[EventCountry "GER"]
[SourceTitle "playchess.com"]
[Source "ChessBase"]
[SourceQuality "1"]
[TimeControl "40/4500+30:900+30"]

1. e4 {[%emt 0:00:00]} c6 {[%emt 0:00:00]} 2. Nc3 {[%emt 0:00:00]} d5 {[%emt 0:00:00]} 3. Nf3 {[%emt 0:00:00]} dxe4 {[%emt 0:00:00]} 4. Nxe4 {[%emt 0:00:00]} Nf6 {[%emt 0:00:00]} 5. Nxf6+ {[%emt 0:00:00]} exf6 {[%emt 0:00:00]} 6. h3 {[%emt 0:00:00]} Bd6 {[%emt 0:00:00]} 7. d4 {[%emt 0:00:00]} O-O {[%emt 0:00:00]} 8. Be2 {[%emt 0:00:00]} Re8 {[%emt 0:00:00]} 9. O-O {[%emt 0:00:00]} Nd7 {[%emt 0:00:00]} 10. Bd3 {[%emt 0:00:00]} Nf8 {[%emt 0:00:00]} 11. Bd2 {[%emt 0:00:00]} Be6 {[%emt 0:00:00]} 12. Re1 {[%emt 0:00:00]} Qc7 {[%emt 0:00:00]} 13. c4 {[%emt 0:00:00]} Ng6 {[%emt 0:00:00]} 14. Qc2 {[%emt 0:03:13]} Qd7 {[%emt 0:00:59]} 15. Bxg6 {[%emt 0:30:14]} hxg6 {[%emt 0:00:44]} 16. h4 {[%emt 0:13:48]} Bg4 {[%emt 0:07:14]} 17. Qd3 {[%emt 0:01:30]} Bf5 {[%emt 0:01:52]} 18. Qc3 {[%emt 0:01:47]} Be4 {[%emt 0:01:41]} 19. Re2 {[%emt 0:09:24]} Re7 {[%emt 0:01:33]} 20. Rae1 {[%emt 0:00:37]} Rae8 {[%emt 0:00:27]} 21. Nh2 {[%emt 0:02:36]} Qc7 {[%emt 0:12:10]} 22. Ng4 {[%emt 0:03:22]} f5 {[%emt 0:05:13]} 23. Ne5 {[%emt 0:01:28]} c5 {[%emt 0:04:06]} 24. Nf3 {[%emt 0:03:04]} Bxf3 {[%emt 0:05:05]} 25. Rxe7 {[%emt 0:01:19]} Rxe7 {[%emt 0:01:19]} 26. Rxe7 {[%emt 0:01:50]} Bxe7 {[%emt 0:02:09]} 27. Qxf3 {[%emt 0:00:40]} cxd4 {[%emt 0:00:07]} 28. Qd5 {[%emt 0:00:24]} Bxh4 {[%emt 0:04:24]} 29. Qxd4 {[%emt 0:00:38]} Bf6 {[%emt 0:00:20]} 30. Qxa7 {[%emt 0:01:17]} Bxb2 {[%emt 0:00:07]} 31. Qa4 {[%emt 0:00:38]} Be5 {[%emt 0:00:54]} 32. g3 {[%emt 0:00:46]} Qd6 {[%emt 0:00:35]} 33. Be3 {[%emt 0:03:52]} Kh7 {[%emt 0:00:47]} 34. c5 {[%emt 0:00:28]} Qe7 {[%emt 0:02:01]} 35. Kg2 {[%emt 0:02:29]} g5 {[%emt 0:00:38]} 36. Qc2 {[%emt 0:00:30]} g6 {[%emt 0:00:31]} 37. Qd2 {[%emt 0:00:55]} Bf6 {[%emt 0:08:18]} 38. Qd5 {[%emt 0:01:44]} g4 {[%emt 0:04:16]} 39. a4 {[%emt 0:00:59]} Qc7 {[%emt 0:05:58]} 40. Bf4 {[%emt 0:01:07]} Qe7 {[%emt 0:03:40]} 41. Be3 {[%emt 0:17:00]} Kg8 {[%emt 0:24:47]} 42. Kg1 {[%emt 0:02:58]} Qc7 {[%emt 0:06:06]} 43. Bf4 {[%emt 0:00:00]} Qc8 {[%emt 0:00:00]} 44. Qd6 {[%emt 0:00:00]} Bd8 {[%emt 0:00:00]} 45. Bh6 {[%emt 0:00:00]} Bg5 {[%emt 0:00:00]} 46. Bxg5 {[%emt 0:00:00]} Qe8 {[%emt 0:00:00]} 47. Qe7 {[%emt 0:00:00]} Qxa4 {[%emt 0:00:00]} 48. Bf6 {[%emt 0:00:00]} Qa8 {[%emt 0:00:00]} 49. Qd8+ {[%emt 0:00:00]} Qxd8 {[%emt 0:00:00]} 50. Bxd8 {[%emt 0:00:00]} Kf8 {[%emt 0:00:00]} 51. Kf1 {[%emt 0:00:00]} Ke8 {[%emt 0:00:01]} 52. Bb6 {[%emt 0:00:00]} Kd7 {[%emt 0:02:38]} 53. Ke2 {[%emt 0:00:00]} Ke6 {[%emt 0:01:03]} 54. Ke3 {[%emt 0:00:00]} g5 {[%emt 0:01:03]} 55. Kd4 {[%emt 0:00:00]} f4 {[%emt 0:01:26]} 56. Bc7 {[%emt 0:00:00]} fxg3 {[%emt 0:00:44]} 57. fxg3 {[%emt 0:00:00]} f5 {[%emt 0:00:17]} 58. Bd8 {[%emt 0:00:00]} f4 {[%emt 0:00:34]} 59. Bxg5 {[%emt 0:00:00]} fxg3 {[%emt 0:00:14]} 60. Ke4 {[%emt 0:00:00]} g2 {[%emt 0:00:18]} 61. Be3 {[%emt 0:00:00]} Kd7 {[%emt 0:00:38]} 62. Kf4 {[%emt 0:00:00]} Kc6 {[%emt 0:00:18]} 63. Kxg4 {[%emt 0:00:00]} Kc7 {[%emt 0:01:24]} 64. Kg3 {[%emt 0:00:00]} Kb8 {[%emt 0:00:03]} 65. Kxg2 {[%emt 0:00:00]} Ka8 {[%emt 0:00:03]} 66. Kf3 {[%emt 0:00:00]} Kb8 {[%emt 0:00:04]} 67. Ke4 {[%emt 0:00:00]} Ka8 {[%emt 0:00:04]} 68. Kd5 {[%emt 0:00:00]} Kb8 {[%emt 0:00:05]} 69. Kd6 {[%emt 0:00:00]} Ka8 {[%emt 0:00:04]} 70. Kc7 {[%emt 0:00:00]} Ka7 {[%emt 0:00:04]} 71. c6+ {[%emt 0:00:00]} b6 {[%emt 0:00:41]} 72. Bxb6+ {[%emt 0:00:00]} Ka8 {[%emt 0:00:08]} 73. Kd7 {[%emt 0:00:00]} Kb8 {[%emt 0:00:05]} 74. c7+ {[%emt 0:00:00]} Kb7 {[%emt 0:00:04]} 75. c8=Q+ {[%emt 0:00:00]} 1-0

[Event "GER-ch Youth-U12 2024"]
[Site "Willingen"]
[Date "2024.05.21"]
[Round "4"]
[White "Marynychenko, Yehor"]
[Black "Fadeev, Justin Michael"]
[Result "1/2-1/2"]
[ECO "C29"]
[WhiteElo "1896"]
[BlackElo "1762"]
[Annotator "NA RC"]
[PlyCount "137"]
[EventDate "2022.06.05"]
[EventType "swiss"]
[EventRounds "9"]
[EventCountry "GER"]
[SourceTitle "playchess.com"]
[Source "ChessBase"]
[SourceQuality "1"]
[TimeControl "40/4500+30:900+30"]

1. e4 {[%emt 0:00:00]} e5 {[%emt 0:00:00]} 2. Nc3 {[%emt 0:00:00]} Nf6 {[%emt 0:00:00]} 3. f4 {[%emt 0:00:00]} d5 {[%emt 0:00:00]} 4. fxe5 {[%emt 0:00:00]} Nxe4 {[%emt 0:00:00]} 5. Nf3 {[%emt 0:00:00]} Bc5 {[%emt 0:00:00]} 6. d4 {[%emt 0:00:00]} Bb4 {[%emt 0:00:00]} 7. Bd2 {[%emt 0:00:00]} c5 {[%emt 0:00:00]} 8. Bd3 {[%emt 0:00:00]} Nxd2 {[%emt 0:00:00]} 9. Qxd2 {[%emt 0:00:00]} cxd4 {[%emt 0:00:00]} 10. Nxd4 {[%emt 0:00:00]} Nc6 {[%emt 0:00:00]} 11. Nxc6 {[%emt 0:00:00]} bxc6 {[%emt 0:00:00]} 12. O-O {[%emt 0:00:00]} O-O {[%emt 0:00:00]} 13. Qf4 {[%emt 0:00:00]} Rb8 {[%emt 0:04:09]} 14. Kh1 {[%emt 0:03:12]} Be7 {[%emt 0:06:31]} 15. a3 {[%emt 0:25:01]} Rxb2 {[%emt 0:14:44]} 16. Qa4 {[%emt 0:02:29]} Qc7 {[%emt 0:09:17]} 17. Rae1 {[%emt 0:04:11]} Be6 {[%emt 0:07:33]} 18. Nd1 {[%emt 0:12:37]} Rb1 {[%emt 0:12:39]} 19. c4 {[%emt 0:10:57]} Ra1 {[%emt 0:02:25]} 20. Qc2 {[%emt 0:00:39]} g6 {[%emt 0:03:57]} 21. cxd5 {[%emt 0:00:19]} Bxd5 {[%emt 0:00:35]} 22. Nc3 {[%emt 0:02:31]} Rxe1 {[%emt 0:00:48]} 23. Rxe1 {[%emt 0:00:05]} Qd7 {[%emt 0:04:28]} 24. Nxd5 {[%emt 0:02:10]} cxd5 {[%emt 0:05:11]} 25. e6 {[%emt 0:00:29]} Qd6 {[%emt 0:00:47]} 26. exf7+ {[%emt 0:00:20]} Rxf7 {[%emt 0:00:15]} 27. Qb3 {[%emt 0:01:34]} Kg7 {[%emt 0:01:16]} 28. Bf1 {[%emt 0:08:08]} Qe5 {[%emt 0:04:58]} 29. Qd1 {[%emt 0:01:54]} Qf4 {[%emt 0:02:00]} 30. g3 {[%emt 0:00:44]} Qf6 {[%emt 0:01:48]} 31. Bg2 {[%emt 0:00:53]} d4 {[%emt 0:01:05]} 32. Bd5 {[%emt 0:01:13]} Rf8 {[%emt 0:00:32]} 33. Re6 {[%emt 0:00:36]} Qg5 {[%emt 0:03:50]} 34. Qxd4+ {[%emt 0:02:13]} Bf6 {[%emt 0:01:01]} 35. Qxa7+ {[%emt 0:00:41]} Rf7 {[%emt 0:00:14]} 36. Qxf7+ {[%emt 0:00:10]} Kxf7 {[%emt 0:00:06]} 37. Re5+ {[%emt 0:00:04]} Kg7 {[%emt 0:00:27]} 38. Rxg5 {[%emt 0:00:05]} Bxg5 {[%emt 0:00:02]} 39. a4 {[%emt 0:00:11]} Bd2 {[%emt 0:00:08]} 40. Kg2 {[%emt 0:00:05]} Kf6 {[%emt 0:03:14]} 41. Kf3 {[%emt 0:15:49]} Kf5 {[%emt 0:00:00]} 42. Ke2 {[%emt 0:00:00]} Ba5 {[%emt 0:00:00]} 43. Bf3 {[%emt 0:00:00]} g5 {[%emt 0:00:00]} 44. Kd3 {[%emt 0:00:00]} h6 {[%emt 0:10:00]} 45. g4+ {[%emt 0:00:00]} Kf4 {[%emt 0:00:44]} 46. Bd1 {[%emt 0:00:00]} h5 {[%emt 0:00:44]} 47. gxh5 {[%emt 0:00:00]} Kf5 {[%emt 0:00:10]} 48. h3 {[%emt 0:00:00]} Kf6 {[%emt 0:00:16]} 49. Kc4 {[%emt 0:00:00]} Kg7 {[%emt 0:00:06]} 50. Kb5 {[%emt 0:00:00]} Bd2 {[%emt 0:00:12]} 51. a5 {[%emt 0:00:00]} Bxa5 {[%emt 0:00:23]} 52. Kxa5 {[%emt 0:00:00]} Kh8 {[%emt 0:00:03]} 53. Bc2 {[%emt 0:00:00]} Kg7 {[%emt 0:00:06]} 54. Kb5 {[%emt 0:00:00]} Kh8 {[%emt 0:00:03]} 55. Kc6 {[%emt 0:00:00]} Kg7 {[%emt 0:00:04]} 56. Kd5 {[%emt 0:00:00]} Kh8 {[%emt 0:00:05]} 57. Bg6 {[%emt 0:00:00]} Kg7 {[%emt 0:00:04]} 58. Ke5 {[%emt 0:00:00]} Kh8 {[%emt 0:00:05]} 59. Kf6 {[%emt 0:00:00]} Kg8 {[%emt 0:00:04]} 60. Bf7+ {[%emt 0:00:00]} Kh8 {[%emt 0:00:05]} 61. Bg6 {[%emt 0:00:00]} Kg8 {[%emt 0:00:06]} 62. h6 {[%emt 0:00:00]} Kh8 {[%emt 0:00:06]} 63. Kxg5 {[%emt 0:00:00]} Kg8 {[%emt 0:00:05]} 64. Kf6 {[%emt 0:00:00]} Kh8 {[%emt 0:00:04]} 65. Bf7 {[%emt 0:00:00]} Kh7 {[%emt 0:00:04]} 66. Be6 {[%emt 0:00:00]} Kh8 {[%emt 0:00:03]} 67. h4 {[%emt 0:00:00]} Kh7 {[%emt 0:00:03]} 68. Bd5 {[%emt 0:00:00]} Kh8 {[%emt 0:00:04]} 69. Bg8 {[%emt 0:00:00]} 1/2-1/2

[Event "GER-ch Youth-U12 2024"]
[Site "Willingen"]
[Date "2024.05.21"]
[Round "4"]
[White "Hoppe, Arthur"]
[Black "Stehning, Toni"]
[Result "0-1"]
[ECO "D32"]
[WhiteElo "1859"]
[BlackElo "1821"]
[Annotator "NA RC"]
[PlyCount "20"]
[EventDate "2022.06.05"]
[EventType "swiss"]
[EventRounds "9"]
[EventCountry "GER"]
[SourceTitle "playchess.com"]
[Source "ChessBase"]
[SourceQuality "1"]
[TimeControl "40/4500+30:900+30"]

1. d4 {[%emt 0:00:00]} d5 {[%emt 0:00:00]} 2. c4 {[%emt 0:00:00]} e6 {[%emt 0:00:00]} 3. Nc3 {[%emt 0:00:00]} c5 {[%emt 0:00:00]} 4. cxd5 {[%emt 0:00:00]} exd5 {[%emt 0:00:00]} 5. Nf3 {[%emt 0:00:00]} Nf6 {[%emt 0:00:00]} 6. dxc5 {[%emt 0:00:00]} Bxc5 {[%emt 0:00:00]} 7. Bg5 {[%emt 0:00:00]} Qb6 {[%emt 0:00:00]} 8. Be3 {[%emt 0:00:00]} Bxe3 {[%emt 0:00:00]} 9. fxe3 {[%emt 0:00:00]} Qxb2 {[%emt 0:00:00]} 10. Kf2 {[%emt 0:00:00]} Qxc3 {[%emt 0:00:00]} 0-1

[Event "GER-ch Youth-U12 2024"]
[Site "Willingen"]
[Date "2024.05.21"]
[Round "4"]
[White "Junge, Mattheo Gabriel"]
[Black "Jahn, Gustav"]
[Result "1-0"]
[ECO "B12"]
[WhiteElo "1817"]
[BlackElo "1755"]
[Annotator "NA RC"]
[PlyCount "45"]
[EventDate "2022.06.05"]
[EventType "swiss"]
[EventRounds "9"]
[EventCountry "GER"]
[SourceTitle "playchess.com"]
[Source "ChessBase"]
[SourceQuality "1"]
[TimeControl "40/4500+30:900+30"]

1. e4 {[%emt 0:00:00]} c6 {[%emt 0:00:00]} 2. d4 {[%emt 0:00:00]} d5 {[%emt 0:00:00]} 3. f3 {[%emt 0:00:00]} dxe4 {[%emt 0:00:00]} 4. fxe4 {[%emt 0:00:00]} Nd7 {[%emt 0:00:00]} 5. Nf3 {[%emt 0:00:00]} e6 {[%emt 0:00:00]} 6. Bc4 {[%emt 0:00:00]} Ngf6 {[%emt 0:00:00]} 7. e5 {[%emt 0:00:00]} Nd5 {[%emt 0:00:00]} 8. O-O {[%emt 0:00:00]} Be7 {[%emt 0:00:00]} 9. Nc3 {[%emt 0:00:00]} Nxc3 {[%emt 0:00:00]} 10. bxc3 {[%emt 0:00:00]} b5 {[%emt 0:00:00]} 11. Bd3 {[%emt 0:00:00]} O-O {[%emt 0:00:00]} 12. Qe1 {[%emt 0:02:07]} Re8 {[%emt 0:05:24]} 13. Qe4 {[%emt 0:01:05]} Nf8 {[%emt 0:01:06]} 14. Qxc6 {[%emt 0:01:38]} Bd7 {[%emt 0:01:01]} 15. Qe4 {[%emt 0:00:08]} Ng6 {[%emt 0:00:16]} 16. h4 {[%emt 0:02:06]} Bxh4 {[%emt 0:05:06]} 17. Qg4 {[%emt 0:01:56]} Be7 {[%emt 0:03:36]} 18. Bg5 {[%emt 0:01:38]} Bc6 {[%emt 0:01:45]} 19. Bxe7 {[%emt 0:01:10]} Rxe7 {[%emt 0:01:38]} 20. Ng5 {[%emt 0:00:38]} Rc7 {[%emt 0:06:21]} 21. Qh5 {[%emt 0:04:26]} Be8 {[%emt 0:08:31]} 22. Qxh7+ {[%emt 0:00:37]} Kf8 {[%emt 0:00:16]} 23. Nxe6+ {[%emt 0:00:07]} 1-0

[Event "GER-ch Youth-U12 2024"]
[Site "Willingen"]
[Date "2024.05.21"]
[Round "4"]
[White "Rodriguez Klasen, Ennio"]
[Black "Hepp, Daniel"]
[Result "1/2-1/2"]
[ECO "B20"]
[WhiteElo "1802"]
[BlackElo "1721"]
[Annotator "NA RC"]
[PlyCount "123"]
[EventDate "2022.06.05"]
[EventType "swiss"]
[EventRounds "9"]
[EventCountry "GER"]
[SourceTitle "playchess.com"]
[Source "ChessBase"]
[SourceQuality "1"]
[TimeControl "40/4500+30:900+30"]

1. e4 {[%emt 0:00:00]} c5 {[%emt 0:00:00]} 2. b3 {[%emt 0:00:00]} Nc6 {[%emt 0:00:00]} 3. Bb2 {[%emt 0:00:00]} d6 {[%emt 0:00:00]} 4. Bb5 {[%emt 0:00:00]} Nf6 {[%emt 0:00:00]} 5. Nc3 {[%emt 0:00:00]} Bd7 {[%emt 0:04:11]} 6. f4 {[%emt 0:00:00]} a6 {[%emt 0:00:00]} 7. Bxc6 {[%emt 0:00:00]} Bxc6 {[%emt 0:00:00]} 8. d3 {[%emt 0:00:00]} e6 {[%emt 0:00:00]} 9. Nf3 {[%emt 0:08:18]} d5 {[%emt 0:08:59]} 10. e5 {[%emt 0:04:20]} Ng4 {[%emt 0:10:11]} 11. Qe2 {[%emt 0:05:45]} Be7 {[%emt 0:05:09]} 12. O-O {[%emt 0:10:42]} Qc7 {[%emt 0:05:15]} 13. h3 {[%emt 0:08:16]} Nh6 {[%emt 0:01:29]} 14. g4 {[%emt 0:00:52]} O-O-O {[%emt 0:08:22]} 15. a3 {[%emt 0:03:45]} Rhg8 {[%emt 0:04:26]} 16. Qd2 {[%emt 0:02:57]} Rdf8 {[%emt 0:04:57]} 17. b4 {[%emt 0:06:35]} f6 {[%emt 0:11:36]} 18. bxc5 {[%emt 0:09:16]} fxe5 {[%emt 0:00:00]} 19. Nxe5 {[%emt 0:02:39]} Bxc5+ {[%emt 0:00:00]} 20. d4 {[%emt 0:00:33]} Bd6 {[%emt 0:00:00]} 21. Rae1 {[%emt 0:04:28]} Bxe5 {[%emt 0:00:00]} 22. fxe5 {[%emt 0:01:43]} Qe7 {[%emt 0:00:00]} 23. Qg2 {[%emt 0:01:17]} Rxf1+ {[%emt 0:01:30]} 24. Rxf1 {[%emt 0:00:37]} Rf8 {[%emt 0:00:31]} 25. Bc1 {[%emt 0:00:31]} Rxf1+ {[%emt 0:01:13]} 26. Qxf1 {[%emt 0:00:02]} Nf7 {[%emt 0:00:02]} 27. Qf4 {[%emt 0:01:33]} h6 {[%emt 0:01:10]} 28. Kg2 {[%emt 0:04:26]} g5 {[%emt 0:03:56]} 29. Qf6 {[%emt 0:03:28]} Qxf6 {[%emt 0:01:23]} 30. exf6 {[%emt 0:00:01]} Kd7 {[%emt 0:06:57]} 31. Ne2 {[%emt 0:00:52]} Kd6 {[%emt 0:02:26]} 32. Ng3 {[%emt 0:00:30]} Be8 {[%emt 0:00:49]} 33. Bb2 {[%emt 0:02:48]} Nd8 {[%emt 0:02:10]} 34. Kf3 {[%emt 0:01:17]} Bg6 {[%emt 0:00:48]} 35. c3 {[%emt 0:01:47]} Nc6 {[%emt 0:00:07]} 36. a4 {[%emt 0:01:03]} Kd7 {[%emt 0:01:25]} 37. Ba3 {[%emt 0:00:53]} Ke8 {[%emt 0:00:09]} 38. Bd6 {[%emt 0:02:20]} Kf7 {[%emt 0:01:23]} 39. Be5 {[%emt 0:00:39]} Na5 {[%emt 0:00:36]} 40. Nf1 {[%emt 0:00:35]} Nc4 {[%emt 0:01:11]} 41. Ne3 {[%emt 0:00:00]} Nb6 {[%emt 0:00:00]} 42. a5 {[%emt 0:00:00]} Nd7 {[%emt 0:00:00]} 43. c4 {[%emt 0:00:00]} Be4+ {[%emt 0:00:00]} 44. Kg3 {[%emt 0:00:29]} Nxf6 {[%emt 0:00:00]} 45. c5 {[%emt 0:09:05]} Nd7 {[%emt 0:00:00]} 46. Bc7 {[%emt 0:01:40]} e5 {[%emt 0:00:00]} 47. dxe5 {[%emt 0:02:39]} Ke6 {[%emt 0:03:28]} 48. Bd6 {[%emt 0:02:49]} Nxe5 {[%emt 0:02:06]} 49. Bf8 {[%emt 0:00:28]} d4 {[%emt 0:02:04]} 50. Nf1 {[%emt 0:00:56]} Nf7 {[%emt 0:01:45]} 51. Nd2 {[%emt 0:00:50]} Kd5 {[%emt 0:01:27]} 52. Kf2 {[%emt 0:01:10]} Bg6 {[%emt 0:03:28]} 53. Ke2 {[%emt 0:00:45]} h5 {[%emt 0:01:16]} 54. Be7 {[%emt 0:00:36]} hxg4 {[%emt 0:00:24]} 55. hxg4 {[%emt 0:00:14]} Ne5 {[%emt 0:01:29]} 56. Bxg5 {[%emt 0:01:17]} Nxg4 {[%emt 0:00:44]} 57. Be7 {[%emt 0:00:41]} d3+ {[%emt 0:01:14]} 58. Ke1 {[%emt 0:00:10]} Ne5 {[%emt 0:00:23]} 59. Kd1 {[%emt 0:00:37]} Nc4 {[%emt 0:00:48]} 60. Nxc4 {[%emt 0:00:22]} Kxc4 {[%emt 0:00:09]} 61. Kd2 {[%emt 0:00:14]} Kb5 {[%emt 0:00:14]} 62. Bd8 {[%emt 0:00:11]} 1/2-1/2

[Event "GER-ch Youth-U12 2024"]
[Site "Willingen"]
[Date "2024.05.21"]
[Round "4"]
[White "Fels, Mattis"]
[Black "Rau, Eduard"]
[Result "1-0"]
[ECO "B13"]
[WhiteElo "1759"]
[BlackElo "1756"]
[Annotator "NA RC"]
[PlyCount "65"]
[EventDate "2022.06.05"]
[EventType "swiss"]
[EventRounds "9"]
[EventCountry "GER"]
[SourceTitle "playchess.com"]
[Source "ChessBase"]
[SourceQuality "1"]
[TimeControl "40/4500+30:900+30"]

1. d4 {[%emt 0:00:00]} Nf6 {[%emt 0:00:00]} 2. Nc3 {[%emt 0:00:00]} d5 {[%emt 0:00:00]} 3. Bf4 {[%emt 0:00:00]} c5 {[%emt 0:00:00]} 4. e3 {[%emt 0:00:00]} cxd4 {[%emt 0:00:00]} 5. exd4 {[%emt 0:00:00]} Bg4 {[%emt 0:00:00]} 6. Be2 {[%emt 0:00:00]} Bxe2 {[%emt 0:00:00]} 7. Qxe2 {[%emt 0:00:00]} Nc6 {[%emt 0:00:00]} 8. Nb5 {[%emt 0:00:00]} Qa5+ {[%emt 0:00:00]} 9. c3 {[%emt 0:00:00]} Kd7 {[%emt 0:00:00]} 10. Nf3 {[%emt 0:18:31]} e6 {[%emt 0:00:00]} 11. O-O {[%emt 0:00:32]} a6 {[%emt 0:00:00]} 12. Na3 {[%emt 0:00:24]} Bxa3 {[%emt 0:00:00]} 13. bxa3 {[%emt 0:00:05]} Ne4 {[%emt 0:00:00]} 14. Rab1 {[%emt 0:04:45]} b5 {[%emt 0:00:00]} 15. c4 {[%emt 0:10:33]} Nc3 {[%emt 0:01:16]} 16. Ne5+ {[%emt 0:00:18]} Ke8 {[%emt 0:00:31]} 17. Qh5 {[%emt 0:07:07]} Nxe5 {[%emt 0:02:04]} 18. Qxe5 {[%emt 0:00:14]} Nxb1 {[%emt 0:07:14]} 19. Qxg7 {[%emt 0:00:10]} Ke7 {[%emt 0:02:49]} 20. Bg5+ {[%emt 0:01:18]} Kd6 {[%emt 0:00:44]} 21. Qxf7 {[%emt 0:03:11]} Rae8 {[%emt 0:35:13]} 22. Bf4+ {[%emt 0:02:29]} Kc6 {[%emt 0:00:02]} 23. cxb5+ {[%emt 0:00:52]} Kxb5 {[%emt 0:00:16]} 24. Rxb1+ {[%emt 0:00:46]} Kc4 {[%emt 0:00:06]} 25. Rb4+ {[%emt 0:01:43]} Kd3 {[%emt 0:00:25]} 26. Qh5 {[%emt 0:01:50]} Qxb4 {[%emt 0:04:51]} 27. axb4 {[%emt 0:01:13]} Rc8 {[%emt 0:00:16]} 28. Qh3+ {[%emt 0:05:46]} Kxd4 {[%emt 0:00:09]} 29. Qxe6 {[%emt 0:00:20]} Rhe8 {[%emt 0:00:06]} 30. Be3+ {[%emt 0:00:33]} Kc4 {[%emt 0:00:12]} 31. Qxa6+ {[%emt 0:00:44]} Kxb4 {[%emt 0:00:03]} 32. Qb6+ {[%emt 0:00:54]} Kc3 {[%emt 0:00:04]} 33. Qb3# {[%emt 0:00:56]} 1-0